[Event "Titled Tuesday Blitz May 16 Late 2023"]
[White "Denishev, Marat"]
[Black "Talbi, Chafik"]
[WhiteFideId "24131563"]
[BlackFideId "7903715"]
[WhiteElo "2311"]
[BlackElo "2186"]
[Result "1-0"]
[Round "01"]
[TimeControl "180+2"]
[Date "2023.05.16"]
[WhiteClock "0:00:30"]
[BlackClock "0:00:00"]

1. d4 {[%clk 0:03:00]}  c6 {[%clk 0:03:00]} 2. c4 {[%clk 0:02:56]}  d5 {[%clk 0:03:01]} 3. Nf3 {[%clk 0:02:57]}  Nf6 {[%clk 0:03:00]} 4. Nc3 {[%clk 0:02:57]}  e6 {[%clk 0:03:00]} 5. Bg5 {[%clk 0:02:56]}  Be7 {[%clk 0:02:59]} 6. e3 {[%clk 0:02:56]}  O-O {[%clk 0:02:59]} 7. Qc2 {[%clk 0:02:57]}  b6 {[%clk 0:02:59]} 8. Bd3 {[%clk 0:02:57]}  h6 {[%clk 0:02:59]} 9. Bf4 {[%clk 0:02:56]}  Bb7 {[%clk 0:02:58]} 10. O-O {[%clk 0:02:55]}  Nbd7 {[%clk 0:02:57]} 11. Rad1 {[%clk 0:02:54]}  Rc8 {[%clk 0:02:56]} 12. Qe2 {[%clk 0:02:52]}  Re8 {[%clk 0:02:52]} 13. Ne5 {[%clk 0:02:51]}  Nxe5 {[%clk 0:02:50]} 14. Bxe5 {[%clk 0:02:46]}  Nd7 {[%clk 0:02:49]} 15. Bg3 {[%clk 0:02:46]}  Nf6 {[%clk 0:02:46]} 16. b3 {[%clk 0:02:45]}  Bd6 {[%clk 0:02:45]} 17. e4 {[%clk 0:02:40]}  Bxg3 {[%clk 0:02:42]} 18. hxg3 {[%clk 0:02:36]}  dxe4 {[%clk 0:02:41]} 19. Nxe4 {[%clk 0:02:37]}  Nxe4 {[%clk 0:02:11]} 20. Qxe4 {[%clk 0:02:38]}  Qf6 {[%clk 0:02:09]} 21. Qh7+ {[%clk 0:02:34]}  Kf8 {[%clk 0:02:09]} 22. Rfe1 {[%clk 0:02:31]}  Rcd8 {[%clk 0:02:01]} 23. Be4 {[%clk 0:02:25]}  Rxd4 {[%clk 0:01:57]} 24. Bf3 {[%clk 0:02:21]}  Red8 {[%clk 0:01:52]} 25. Rxd4 {[%clk 0:02:16]}  Qxd4 {[%clk 0:01:49]} 26. Re3 {[%clk 0:02:02]}  Ke7 {[%clk 0:01:44]} 27. c5 {[%clk 0:01:52]}  bxc5 {[%clk 0:01:41]} 28. Re4 {[%clk 0:01:52]}  Qf6 {[%clk 0:01:33]} 29. Ra4 {[%clk 0:01:43]}  a6 {[%clk 0:01:31]} 30. Rc4 {[%clk 0:01:43]}  Qe5 {[%clk 0:01:29]} 31. Re4 {[%clk 0:01:34]}  Qf6 {[%clk 0:01:19]} 32. Rf4 {[%clk 0:01:34]}  Qa1+ {[%clk 0:01:18]} 33. Kh2 {[%clk 0:01:33]}  Qb2 {[%clk 0:00:43]} 34. Bh5 {[%clk 0:01:27]}  Rf8 {[%clk 0:00:39]} 35. Qd3 {[%clk 0:01:16]}  Qe5 {[%clk 0:00:34]} 36. Bf3 {[%clk 0:01:09]}  Rd8 {[%clk 0:00:33]} 37. Qc2 {[%clk 0:01:04]}  Rd4 {[%clk 0:00:30]} 38. Qc1 {[%clk 0:00:53]}  Rxf4 {[%clk 0:00:28]} 39. gxf4 {[%clk 0:00:54]}  Qd4 {[%clk 0:00:28]} 40. Kg3 {[%clk 0:00:50]}  a5 {[%clk 0:00:24]} 41. Qe1 {[%clk 0:00:48]}  Qb4 {[%clk 0:00:16]} 42. Qe5 {[%clk 0:00:46]}  Qd4 {[%clk 0:00:12]} 43. Qc7+ {[%clk 0:00:46]}  Qd7 {[%clk 0:00:12]} 44. Qxa5 {[%clk 0:00:45]}  Qd6 {[%clk 0:00:09]} 45. Qa7 {[%clk 0:00:41]}  Qd7 {[%clk 0:00:06]} 46. Qa5 {[%clk 0:00:38]}  Kf8 {[%clk 0:00:02]} 47. Qxc5+ {[%clk 0:00:36]}  Kg8 {[%clk 0:00:03]} 48. a4 {[%clk 0:00:36]}  Qc7 {[%clk 0:00:00]} 49. Qe5 {[%clk 0:00:30]} 1-0


[Site "https://www.chess.com"]

[Event "Titled Tuesday Blitz May 16 Late 2023"]
[White "Dylag, Emilia"]
[Black "Omranalhosani21"]
[WhiteFideId "21805172"]
[WhiteElo "1878"]
[BlackElo "2577"]
[Result "0-1"]
[Round "01"]
[TimeControl "180+2"]
[Date "2023.05.16"]
[WhiteClock "0:00:05"]
[BlackClock "0:00:02"]

1. d4 {[%clk 0:02:59]}  d5 {[%clk 0:02:59]} 2. c4 {[%clk 0:02:59]}  dxc4 {[%clk 0:02:59]} 3. e4 {[%clk 0:02:57]}  e5 {[%clk 0:02:57]} 4. Nf3 {[%clk 0:02:54]}  exd4 {[%clk 0:02:54]} 5. Bxc4 {[%clk 0:02:54]}  Nc6 {[%clk 0:02:45]} 6. O-O {[%clk 0:02:52]}  Be6 {[%clk 0:02:44]} 7. Bb5 {[%clk 0:02:38]}  Bc5 {[%clk 0:01:49]} 8. Qc2 {[%clk 0:02:30]}  Bb6 {[%clk 0:01:44]} 9. Bxc6+ {[%clk 0:02:12]}  bxc6 {[%clk 0:01:45]} 10. Qxc6+ {[%clk 0:02:12]}  Bd7 {[%clk 0:01:46]} 11. Qc4 {[%clk 0:02:03]}  Be6 {[%clk 0:01:33]} 12. Qc6+ {[%clk 0:02:03]}  Bd7 {[%clk 0:01:32]} 13. Qc4 {[%clk 0:02:03]}  c5 {[%clk 0:01:31]} 14. b4 {[%clk 0:01:34]}  Be6 {[%clk 0:01:20]} 15. Qb5+ {[%clk 0:01:34]}  Bd7 {[%clk 0:01:17]} 16. Qc4 {[%clk 0:01:31]}  Rc8 {[%clk 0:01:15]} 17. Bg5 {[%clk 0:01:26]}  f6 {[%clk 0:01:12]} 18. Bf4 {[%clk 0:01:24]}  cxb4 {[%clk 0:00:53]} 19. Qxb4 {[%clk 0:01:22]}  Bc5 {[%clk 0:00:49]} 20. Qb3 {[%clk 0:01:19]}  Ne7 {[%clk 0:00:45]} 21. Nbd2 {[%clk 0:01:12]}  Qb6 {[%clk 0:00:40]} 22. e5 {[%clk 0:01:07]}  Qxb3 {[%clk 0:00:29]} 23. Nxb3 {[%clk 0:01:08]}  Nd5 {[%clk 0:00:29]} 24. Bg3 {[%clk 0:01:03]}  d3 {[%clk 0:00:24]} 25. Rad1 {[%clk 0:00:56]}  Bb5 {[%clk 0:00:18]} 26. Rc1 {[%clk 0:00:41]}  Nc3 {[%clk 0:00:14]} 27. Rxc3 {[%clk 0:00:38]}  Bxf2+ {[%clk 0:00:13]} 28. Bxf2 {[%clk 0:00:38]}  Rxc3 {[%clk 0:00:14]} 29. exf6 {[%clk 0:00:36]}  gxf6 {[%clk 0:00:14]} 30. Bd4 {[%clk 0:00:35]}  Rc2 {[%clk 0:00:14]} 31. Bxf6 {[%clk 0:00:34]}  O-O {[%clk 0:00:14]} 32. Nfd4 {[%clk 0:00:32]}  d2 {[%clk 0:00:11]} 33. Rd1 {[%clk 0:00:16]}  Rxa2 {[%clk 0:00:09]} 34. Nxb5 {[%clk 0:00:11]}  Rxf6 {[%clk 0:00:09]} 35. Rxd2 {[%clk 0:00:10]}  Rxd2 {[%clk 0:00:07]} 36. Nxd2 {[%clk 0:00:11]}  a6 {[%clk 0:00:06]} 37. Na3 {[%clk 0:00:11]}  a5 {[%clk 0:00:07]} 38. Ndc4 {[%clk 0:00:11]}  a4 {[%clk 0:00:06]} 39. g3 {[%clk 0:00:10]}  Kg7 {[%clk 0:00:06]} 40. Kg2 {[%clk 0:00:10]}  h5 {[%clk 0:00:05]} 41. Nc2 {[%clk 0:00:10]}  Rc6 {[%clk 0:00:05]} 42. N4a3 {[%clk 0:00:10]}  Rc3 {[%clk 0:00:05]} 43. Kf2 {[%clk 0:00:09]}  Kf6 {[%clk 0:00:05]} 44. h3 {[%clk 0:00:08]}  Kg5 {[%clk 0:00:05]} 45. Kg2 {[%clk 0:00:06]}  h4 {[%clk 0:00:05]} 46. g4 {[%clk 0:00:05]}  Rg3+ {[%clk 0:00:05]} 47. Kh2 {[%clk 0:00:05]}  Kf4 {[%clk 0:00:04]} 48. Nc4 {[%clk 0:00:05]}  Rc3 {[%clk 0:00:03]} 49. N2a3 {[%clk 0:00:05]}  Kf3 {[%clk 0:00:03]} 50. Kh1 {[%clk 0:00:04]}  Kg3 {[%clk 0:00:03]} 51. g5 {[%clk 0:00:05]}  Rc1# {[%clk 0:00:02]} 0-1


[Site "https://www.chess.com"]

[Event "Titled Tuesday Blitz May 16 Late 2023"]
[White "Moore, Nicholas"]
[Black "Harish, Neeraj"]
[WhiteFideId "4303709"]
[BlackFideId "30958130"]
[WhiteElo "2573"]
[BlackElo "1879"]
[Result "1-0"]
[Round "01"]
[TimeControl "180+2"]
[Date "2023.05.16"]
[WhiteClock "0:00:15"]
[BlackClock "0:00:02"]

1. d4 {[%clk 0:03:00]}  d5 {[%clk 0:02:57]} 2. c4 {[%clk 0:03:01]}  e6 {[%clk 0:02:56]} 3. Nf3 {[%clk 0:03:01]}  Nf6 {[%clk 0:02:56]} 4. g3 {[%clk 0:03:00]}  Be7 {[%clk 0:02:57]} 5. Bg2 {[%clk 0:02:59]}  O-O {[%clk 0:02:56]} 6. O-O {[%clk 0:03:00]}  dxc4 {[%clk 0:02:57]} 7. Ne5 {[%clk 0:03:00]}  Nc6 {[%clk 0:02:56]} 8. Nxc6 {[%clk 0:02:59]}  bxc6 {[%clk 0:02:57]} 9. Na3 {[%clk 0:02:59]}  Bxa3 {[%clk 0:02:54]} 10. bxa3 {[%clk 0:03:00]}  Rb8 {[%clk 0:02:53]} 11. Qa4 {[%clk 0:02:50]}  Qxd4 {[%clk 0:02:48]} 12. Be3 {[%clk 0:02:46]}  Qd6 {[%clk 0:02:40]} 13. Rfd1 {[%clk 0:02:27]}  Qe7 {[%clk 0:02:40]} 14. Qxa7 {[%clk 0:02:23]}  Rb5 {[%clk 0:02:25]} 15. Bxc6 {[%clk 0:02:18]}  Rh5 {[%clk 0:02:24]} 16. Bf3 {[%clk 0:02:12]}  Rb5 {[%clk 0:02:01]} 17. a4 {[%clk 0:01:58]}  Rf5 {[%clk 0:01:52]} 18. Rac1 {[%clk 0:01:51]}  Rd8 {[%clk 0:01:44]} 19. Rxd8+ {[%clk 0:01:44]}  Qxd8 {[%clk 0:01:45]} 20. Qa8 {[%clk 0:01:37]}  Nd5 {[%clk 0:01:36]} 21. Bd2 {[%clk 0:01:29]}  Nb6 {[%clk 0:01:30]} 22. Qc6 {[%clk 0:01:08]}  Bd7 {[%clk 0:01:23]} 23. Qb7 {[%clk 0:00:53]}  Bc8 {[%clk 0:01:16]} 24. Qc6 {[%clk 0:00:53]}  Bd7 {[%clk 0:01:16]} 25. Qe4 {[%clk 0:00:52]}  Bxa4 {[%clk 0:01:14]} 26. Bc3 {[%clk 0:00:47]}  h6 {[%clk 0:01:05]} 27. h4 {[%clk 0:00:46]}  Be8 {[%clk 0:00:40]} 28. Qg4 {[%clk 0:00:42]}  f6 {[%clk 0:00:29]} 29. Be4 {[%clk 0:00:42]}  h5 {[%clk 0:00:25]} 30. Qh3 {[%clk 0:00:38]}  Bg6 {[%clk 0:00:19]} 31. Bxf5 {[%clk 0:00:32]}  Bxf5 {[%clk 0:00:20]} 32. Qg2 {[%clk 0:00:31]}  Qd7 {[%clk 0:00:19]} 33. Qf3 {[%clk 0:00:22]}  Bg6 {[%clk 0:00:18]} 34. Qe3 {[%clk 0:00:21]}  e5 {[%clk 0:00:16]} 35. Qc5 {[%clk 0:00:21]}  Kh7 {[%clk 0:00:15]} 36. Ra1 {[%clk 0:00:19]}  Qa4 {[%clk 0:00:14]} 37. Qb4 {[%clk 0:00:19]}  Qc2 {[%clk 0:00:14]} 38. Re1 {[%clk 0:00:17]}  Qxa2 {[%clk 0:00:14]} 39. Qb2 {[%clk 0:00:16]}  Qa4 {[%clk 0:00:12]} 40. Qa1 {[%clk 0:00:15]}  Qd7 {[%clk 0:00:12]} 41. Qd1 {[%clk 0:00:14]}  Qc6 {[%clk 0:00:12]} 42. f3 {[%clk 0:00:14]}  Nd5 {[%clk 0:00:11]} 43. Qd2 {[%clk 0:00:15]}  Nxc3 {[%clk 0:00:11]} 44. Qxc3 {[%clk 0:00:15]}  Qe6 {[%clk 0:00:08]} 45. Qe3 {[%clk 0:00:15]}  Qh3 {[%clk 0:00:08]} 46. Qf2 {[%clk 0:00:16]}  Qd7 {[%clk 0:00:08]} 47. Rc1 {[%clk 0:00:16]}  Bf7 {[%clk 0:00:07]} 48. Qe3 {[%clk 0:00:17]}  g6 {[%clk 0:00:06]} 49. Qc3 {[%clk 0:00:15]}  Be6 {[%clk 0:00:06]} 50. Qb4 {[%clk 0:00:14]}  Qc6 {[%clk 0:00:06]} 51. Qd2 {[%clk 0:00:14]}  Qd7 {[%clk 0:00:06]} 52. Qxd7+ {[%clk 0:00:14]}  Bxd7 {[%clk 0:00:06]} 53. Rxc4 {[%clk 0:00:14]}  c6 {[%clk 0:00:07]} 54. Kf2 {[%clk 0:00:15]}  Kg7 {[%clk 0:00:07]} 55. Ke3 {[%clk 0:00:15]}  Kf7 {[%clk 0:00:08]} 56. Ra4 {[%clk 0:00:15]}  Ke7 {[%clk 0:00:08]} 57. Ra7 {[%clk 0:00:16]}  Kd6 {[%clk 0:00:07]} 58. Kd3 {[%clk 0:00:16]}  Bf5+ {[%clk 0:00:07]} 59. Kc3 {[%clk 0:00:16]}  Bd7 {[%clk 0:00:07]} 60. Kc4 {[%clk 0:00:16]}  Be6+ {[%clk 0:00:07]} 61. Kb4 {[%clk 0:00:16]}  Bd7 {[%clk 0:00:08]} 62. Rb7 {[%clk 0:00:16]}  c5+ {[%clk 0:00:06]} 63. Kc3 {[%clk 0:00:16]}  Kc6 {[%clk 0:00:07]} 64. Ra7 {[%clk 0:00:17]}  Kd6 {[%clk 0:00:07]} 65. Ra6+ {[%clk 0:00:16]}  Ke7 {[%clk 0:00:07]} 66. Kc4 {[%clk 0:00:17]}  Bc8 {[%clk 0:00:05]} 67. Ra7+ {[%clk 0:00:17]}  Kd6 {[%clk 0:00:05]} 68. Ra8 {[%clk 0:00:10]}  Be6+ {[%clk 0:00:05]} 69. Kc3 {[%clk 0:00:11]}  Kc6 {[%clk 0:00:03]} 70. Ra6+ {[%clk 0:00:11]}  Kd5 {[%clk 0:00:03]} 71. Ra7 {[%clk 0:00:11]}  Kd6 {[%clk 0:00:03]} 72. Rg7 {[%clk 0:00:11]}  Bf5 {[%clk 0:00:03]} 73. e4 {[%clk 0:00:11]}  Bh3 {[%clk 0:00:03]} 74. Rxg6 {[%clk 0:00:10]}  Ke6 {[%clk 0:00:03]} 75. Kd2 {[%clk 0:00:10]}  Bg2 {[%clk 0:00:03]} 76. Ke3 {[%clk 0:00:11]}  c4 {[%clk 0:00:04]} 77. Rg8 {[%clk 0:00:11]}  c3 {[%clk 0:00:04]} 78. Rc8 {[%clk 0:00:12]}  Kd7 {[%clk 0:00:03]} 79. Rxc3 {[%clk 0:00:12]}  Ke6 {[%clk 0:00:04]} 80. Ra3 {[%clk 0:00:12]}  f5 {[%clk 0:00:05]} 81. Ra6+ {[%clk 0:00:12]}  Kf7 {[%clk 0:00:05]} 82. exf5 {[%clk 0:00:13]}  Bh3 {[%clk 0:00:06]} 83. Ra7+ {[%clk 0:00:12]}  Kf6 {[%clk 0:00:06]} 84. Ke4 {[%clk 0:00:11]}  Bxf5+ {[%clk 0:00:05]} 85. Ke3 {[%clk 0:00:12]}  Bg6 {[%clk 0:00:06]} 86. Ra6+ {[%clk 0:00:12]}  Kg7 {[%clk 0:00:06]} 87. Kd2 {[%clk 0:00:11]}  Bf7 {[%clk 0:00:06]} 88. Kc3 {[%clk 0:00:12]}  Be8 {[%clk 0:00:06]} 89. Kb4 {[%clk 0:00:12]}  Bf7 {[%clk 0:00:04]} 90. Kc5 {[%clk 0:00:12]}  Bb3 {[%clk 0:00:04]} 91. Ra3 {[%clk 0:00:12]}  Bd1 {[%clk 0:00:04]} 92. Kd6 {[%clk 0:00:12]}  e4 {[%clk 0:00:04]} 93. fxe4 {[%clk 0:00:12]}  Bg4 {[%clk 0:00:05]} 94. Ra7+ {[%clk 0:00:11]}  Kf6 {[%clk 0:00:05]} 95. e5+ {[%clk 0:00:12]}  Kf5 {[%clk 0:00:05]} 96. Rf7+ {[%clk 0:00:12]}  Ke4 {[%clk 0:00:06]} 97. Rf4+ {[%clk 0:00:13]}  Kd3 {[%clk 0:00:03]} 98. e6 {[%clk 0:00:13]}  Bxe6 {[%clk 0:00:03]} 99. Kxe6 {[%clk 0:00:14]}  Ke3 {[%clk 0:00:02]} 100. Kf6 {[%clk 0:00:15]} 1-0


[Site "https://www.chess.com"]

[Event "Titled Tuesday Blitz May 16 Late 2023"]
[White "Sargsyan, Anna M."]
[Black "Schut, Han"]
[WhiteFideId "13308130"]
[BlackFideId "1005561"]
[WhiteElo "2284"]
[BlackElo "2024"]
[Result "1-0"]
[Round "01"]
[TimeControl "180+2"]
[Date "2023.05.16"]
[WhiteClock "0:00:36"]
[BlackClock "0:00:30"]

1. d4 {[%clk 0:02:56]}  Nf6 {[%clk 0:02:56]} 2. c4 {[%clk 0:02:56]}  g6 {[%clk 0:02:56]} 3. g3 {[%clk 0:02:57]}  Bg7 {[%clk 0:02:56]} 4. Bg2 {[%clk 0:02:57]}  d5 {[%clk 0:02:56]} 5. cxd5 {[%clk 0:02:58]}  Nxd5 {[%clk 0:02:57]} 6. e4 {[%clk 0:02:57]}  Nb6 {[%clk 0:02:57]} 7. Ne2 {[%clk 0:02:58]}  Nc6 {[%clk 0:02:57]} 8. d5 {[%clk 0:02:57]}  Ne5 {[%clk 0:02:46]} 9. O-O {[%clk 0:02:55]}  e6 {[%clk 0:02:45]} 10. f4 {[%clk 0:02:52]}  Nec4 {[%clk 0:02:42]} 11. Nbc3 {[%clk 0:02:47]}  exd5 {[%clk 0:02:40]} 12. Nxd5 {[%clk 0:02:42]}  Nxd5 {[%clk 0:02:36]} 13. Qa4+ {[%clk 0:02:33]}  c6 {[%clk 0:02:29]} 14. exd5 {[%clk 0:02:27]}  Nb6 {[%clk 0:02:27]} 15. Qe4+ {[%clk 0:02:26]}  Kf8 {[%clk 0:02:10]} 16. dxc6 {[%clk 0:02:25]}  bxc6 {[%clk 0:02:10]} 17. Qxc6 {[%clk 0:02:23]}  Ba6 {[%clk 0:01:57]} 18. Re1 {[%clk 0:01:22]}  Bxe2 {[%clk 0:01:39]} 19. Be3 {[%clk 0:01:22]}  Bh5 {[%clk 0:01:26]} 20. Bc5+ {[%clk 0:01:03]}  Kg8 {[%clk 0:01:26]} 21. Bxb6 {[%clk 0:01:04]}  axb6 {[%clk 0:00:50]} 22. Qxa8 {[%clk 0:01:03]}  Qxa8 {[%clk 0:00:50]} 23. Bxa8 {[%clk 0:01:04]}  Bxb2 {[%clk 0:00:51]} 24. Re8+ {[%clk 0:00:51]}  Kg7 {[%clk 0:00:50]} 25. Rxh8 {[%clk 0:00:51]}  Bxa1 {[%clk 0:00:46]} 26. Rd8 {[%clk 0:00:52]}  Bg4 {[%clk 0:00:42]} 27. Kg2 {[%clk 0:00:49]}  Be6 {[%clk 0:00:40]} 28. a4 {[%clk 0:00:41]}  Bc3 {[%clk 0:00:39]} 29. Rd6 {[%clk 0:00:37]}  Bb4 {[%clk 0:00:30]} 30. Rxb6 {[%clk 0:00:36]} 1-0


[Site "https://www.chess.com"]

[Event "Titled Tuesday Blitz May 16 Late 2023"]
[White "James, Stuart"]
[Black "Karttunen, Mika"]
[WhiteFideId "7400489"]
[BlackFideId "502081"]
[WhiteElo "1950"]
[BlackElo "2396"]
[Result "1/2-1/2"]
[Round "01"]
[TimeControl "180+2"]
[Date "2023.05.16"]
[WhiteClock "0:01:02"]
[BlackClock "0:00:10"]

1. e4 {[%clk 0:02:59]}  e5 {[%clk 0:02:59]} 2. Nf3 {[%clk 0:02:59]}  Nf6 {[%clk 0:02:59]} 3. Nxe5 {[%clk 0:02:58]}  d6 {[%clk 0:02:59]} 4. Nf3 {[%clk 0:02:58]}  Nxe4 {[%clk 0:02:59]} 5. Nc3 {[%clk 0:02:58]}  Nxc3 {[%clk 0:02:58]} 6. dxc3 {[%clk 0:02:58]}  Be7 {[%clk 0:02:53]} 7. Be3 {[%clk 0:02:58]}  O-O {[%clk 0:02:51]} 8. Qd2 {[%clk 0:02:58]}  Be6 {[%clk 0:02:37]} 9. Bd3 {[%clk 0:02:54]}  c5 {[%clk 0:02:34]} 10. c4 {[%clk 0:02:54]}  Nd7 {[%clk 0:02:26]} 11. O-O {[%clk 0:02:43]}  Ne5 {[%clk 0:02:17]} 12. Nxe5 {[%clk 0:02:39]}  dxe5 {[%clk 0:02:17]} 13. b3 {[%clk 0:02:32]}  f5 {[%clk 0:02:14]} 14. f4 {[%clk 0:02:32]}  e4 {[%clk 0:02:13]} 15. Be2 {[%clk 0:02:33]}  Qxd2 {[%clk 0:02:07]} 16. Bxd2 {[%clk 0:02:32]}  Bf6 {[%clk 0:02:06]} 17. Rad1 {[%clk 0:02:31]}  Bd4+ {[%clk 0:02:05]} 18. Kh1 {[%clk 0:02:30]}  Rad8 {[%clk 0:02:01]} 19. Be1 {[%clk 0:02:21]}  Rd7 {[%clk 0:01:56]} 20. Bh4 {[%clk 0:02:19]}  Rff7 {[%clk 0:01:45]} 21. Bh5 {[%clk 0:02:18]}  g6 {[%clk 0:01:45]} 22. Be2 {[%clk 0:02:18]}  b6 {[%clk 0:01:39]} 23. a4 {[%clk 0:02:13]}  Bc3 {[%clk 0:01:28]} 24. Rxd7 {[%clk 0:02:12]}  Rxd7 {[%clk 0:01:27]} 25. Rd1 {[%clk 0:02:13]}  Rxd1+ {[%clk 0:01:18]} 26. Bxd1 {[%clk 0:02:14]}  Bd2 {[%clk 0:01:18]} 27. Bg3 {[%clk 0:02:05]}  g5 {[%clk 0:01:10]} 28. fxg5 {[%clk 0:02:00]}  f4 {[%clk 0:01:11]} 29. Bh4 {[%clk 0:01:58]}  Be3 {[%clk 0:00:47]} 30. Be1 {[%clk 0:01:40]}  Kf7 {[%clk 0:00:31]} 31. Bh5+ {[%clk 0:01:40]}  Ke7 {[%clk 0:00:31]} 32. Bc3 {[%clk 0:01:40]}  Bd4 {[%clk 0:00:31]} 33. Bd2 {[%clk 0:01:38]}  e3 {[%clk 0:00:31]} 34. Be1 {[%clk 0:01:38]}  Bf5 {[%clk 0:00:31]} 35. Bd1 {[%clk 0:01:38]}  Be4 {[%clk 0:00:31]} 36. c3 {[%clk 0:01:30]}  Bg7 {[%clk 0:00:29]} 37. Kg1 {[%clk 0:01:30]}  Bd3 {[%clk 0:00:29]} 38. Bf3 {[%clk 0:01:27]}  Be5 {[%clk 0:00:25]} 39. g3 {[%clk 0:01:26]}  Kf7 {[%clk 0:00:23]} 40. gxf4 {[%clk 0:01:26]}  Bxf4 {[%clk 0:00:24]} 41. h4 {[%clk 0:01:25]}  Bc2 {[%clk 0:00:21]} 42. b4 {[%clk 0:01:21]}  Bxa4 {[%clk 0:00:21]} 43. b5 {[%clk 0:01:19]}  Bc2 {[%clk 0:00:20]} 44. Bd5+ {[%clk 0:01:19]}  Kg6 {[%clk 0:00:20]} 45. Kg2 {[%clk 0:01:20]}  Bd1 {[%clk 0:00:19]} 46. Bf3 {[%clk 0:01:19]}  Bc2 {[%clk 0:00:18]} 47. Bd5 {[%clk 0:01:18]}  Kf5 {[%clk 0:00:18]} 48. Kf3 {[%clk 0:01:18]}  Bd1+ {[%clk 0:00:19]} 49. Kg2 {[%clk 0:01:18]}  Kg4 {[%clk 0:00:19]} 50. Be6+ {[%clk 0:01:18]}  Kh5 {[%clk 0:00:20]} 51. Bd5 {[%clk 0:01:18]}  Kg4 {[%clk 0:00:16]} 52. Be6+ {[%clk 0:01:18]}  Kh5 {[%clk 0:00:17]} 53. Bd5 {[%clk 0:01:19]}  Kg6 {[%clk 0:00:17]} 54. Be4+ {[%clk 0:01:19]}  Kg7 {[%clk 0:00:16]} 55. Bd5 {[%clk 0:01:19]}  Be2 {[%clk 0:00:17]} 56. Bg3 {[%clk 0:01:17]}  Bxg3 {[%clk 0:00:15]} 57. Kxg3 {[%clk 0:01:17]}  Bh5 {[%clk 0:00:14]} 58. Bf3 {[%clk 0:01:16]}  Kg6 {[%clk 0:00:12]} 59. Be4+ {[%clk 0:01:13]}  Kg7 {[%clk 0:00:13]} 60. Bf3 {[%clk 0:01:13]}  Bg6 {[%clk 0:00:13]} 61. Be2 {[%clk 0:01:12]}  h6 {[%clk 0:00:08]} 62. h5 {[%clk 0:01:10]}  Bf5 {[%clk 0:00:08]} 63. g6 {[%clk 0:01:10]}  Be4 {[%clk 0:00:08]} 64. Kf4 {[%clk 0:01:10]}  Bg2 {[%clk 0:00:08]} 65. Kxe3 {[%clk 0:01:11]}  Kf6 {[%clk 0:00:09]} 66. Kf4 {[%clk 0:01:11]}  Bb7 {[%clk 0:00:08]} 67. Bg4 {[%clk 0:01:11]}  Bg2 {[%clk 0:00:08]} 68. Be2 {[%clk 0:01:11]}  Bh3 {[%clk 0:00:08]} 69. Bf3 {[%clk 0:01:11]}  Be6 {[%clk 0:00:08]} 70. Bd5 {[%clk 0:01:11]}  Bh3 {[%clk 0:00:09]} 71. Kg3 {[%clk 0:01:11]}  Bf1 {[%clk 0:00:09]} 72. Kh4 {[%clk 0:01:08]}  Be2 {[%clk 0:00:09]} 73. Bf7 {[%clk 0:01:07]}  Bd3 {[%clk 0:00:09]} 74. Bd5 {[%clk 0:01:06]}  Be2 {[%clk 0:00:09]} 75. Bf7 {[%clk 0:01:02]}  Bd3 {[%clk 0:00:09]} 76. Bd5 {[%clk 0:01:02]}  Be2 {[%clk 0:00:10]} 1/2-1/2


[Site "https://www.chess.com"]

[Event "Titled Tuesday Blitz May 16 Late 2023"]
[White "Fuentes Godoy, Lilia Ivonne"]
[Black "Danielyan, Vahe"]
[WhiteFideId "5104130"]
[BlackFideId "13304828"]
[WhiteElo "2096"]
[BlackElo "2423"]
[Result "0-1"]
[Round "01"]
[TimeControl "180+2"]
[Date "2023.05.16"]
[WhiteClock "0:00:08"]
[BlackClock "0:02:35"]

1. d4 {[%clk 0:03:00]}  d5 {[%clk 0:02:57]} 2. c4 {[%clk 0:03:00]}  c6 {[%clk 0:02:57]} 3. cxd5 {[%clk 0:02:59]}  cxd5 {[%clk 0:02:56]} 4. Bf4 {[%clk 0:02:59]}  Nc6 {[%clk 0:02:56]} 5. e3 {[%clk 0:02:48]}  Bf5 {[%clk 0:02:54]} 6. Nc3 {[%clk 0:02:46]}  e6 {[%clk 0:02:53]} 7. Bd3 {[%clk 0:02:36]}  Bxd3 {[%clk 0:02:50]} 8. Qxd3 {[%clk 0:02:36]}  Nf6 {[%clk 0:02:51]} 9. a3 {[%clk 0:02:32]}  Bd6 {[%clk 0:02:50]} 10. Bxd6 {[%clk 0:02:31]}  Qxd6 {[%clk 0:02:51]} 11. f4 {[%clk 0:02:32]}  O-O {[%clk 0:02:45]} 12. Nf3 {[%clk 0:02:32]}  Rfc8 {[%clk 0:02:45]} 13. O-O {[%clk 0:02:32]}  Na5 {[%clk 0:02:46]} 14. Ne5 {[%clk 0:02:28]}  Qa6 {[%clk 0:02:45]} 15. Na4 {[%clk 0:01:30]}  Qxd3 {[%clk 0:02:44]} 16. Nxd3 {[%clk 0:01:31]}  Nb3 {[%clk 0:02:43]} 17. Rae1 {[%clk 0:01:23]}  b6 {[%clk 0:02:43]} 18. Nc1 {[%clk 0:01:00]}  Nd2 {[%clk 0:02:41]} 19. Rf2 {[%clk 0:00:57]}  Nfe4 {[%clk 0:02:41]} 20. Rfe2 {[%clk 0:00:54]}  Rc7 {[%clk 0:02:40]} 21. Nc3 {[%clk 0:00:44]}  Nxc3 {[%clk 0:02:38]} 22. Rxd2 {[%clk 0:00:44]}  Ne4 {[%clk 0:02:38]} 23. Rde2 {[%clk 0:00:42]}  Rac8 {[%clk 0:02:39]} 24. Nd3 {[%clk 0:00:40]}  Rc2 {[%clk 0:02:39]} 25. Kf1 {[%clk 0:00:34]}  f6 {[%clk 0:02:38]} 26. g3 {[%clk 0:00:28]}  a5 {[%clk 0:02:36]} 27. Nf2 {[%clk 0:00:28]}  Nd2+ {[%clk 0:02:36]} 28. Kg2 {[%clk 0:00:28]}  Nb3 {[%clk 0:02:35]} 29. Kf3 {[%clk 0:00:20]}  Kf7 {[%clk 0:02:35]} 30. e4 {[%clk 0:00:08]}  Nxd4+ {[%clk 0:02:35]} 0-1


[Site "https://www.chess.com"]